fUSD/lending_fUSD_20251011
["ID","MTS","AMOUNT","RATE_DAILY","PERIOD"]
[390836975,1760176253328,-151.0,0.00015,2]
[390836976,1760176253337,-1979.296731,0.00015,2]
[390836978,1760176253347,-1979.296731,0.00015,2]
[390836980,1760176253356,-17762.47148059,0.00015037,2]
[390836981,1760176253366,-461.0,0.00015039,2]
[390836983,1760176253376,-168.0,0.00015045,2]
[390836985,1760176253386,-150.0,0.00015046,2]
[390836986,1760176253396,-200.0,0.00015046,2]
[390836988,1760176253405,-828.0,0.00015046,2]
[390836990,1760176253415,-500.0,0.00015046,2]
[390836991,1760176253425,-150.0,0.00015046,2]
[390836993,1760176253434,-500.0,0.00015046,2]
[390836995,1760176253444,-1146.0,0.00015046,2]
[390836996,1760176253454,-475.0,0.00015046,2]
[390836998,1760176253465,-150.0,0.00015046,2]
[390837000,1760176253474,-504.0,0.00015046,2]
[390837001,1760176253484,-500.0,0.00015046,2]
[390837003,1760176253493,-500.0,0.00015046,2]
[390837005,1760176253503,-551.0,0.00015046,2]
[390837006,1760176253512,-500.0,0.00015046,2]
[390837008,1760176253524,-500.0,0.00015046,2]
[390837010,1760176253534,-2417.0,0.00015046,2]
[390837011,1760176253543,-500.0,0.00015046,2]
[390837013,1760176253553,-500.0,0.00015046,2]
[390837015,1760176253563,-500.0,0.00015046,2]
[390837016,1760176253573,-150.0,0.00015046,2]
[390837018,1760176253586,-500.0,0.00015046,2]
[390837020,1760176253596,-150.0,0.00015055,2]
[390837021,1760176253606,-150.0,0.00015055,2]
[390837023,1760176253615,-150.0,0.00015055,2]
[390837025,1760176253625,-168.0,0.00015061,2]
[390837026,1760176253635,-162.37,0.00015064,2]
[390837028,1760176253646,-995.0,0.00015072,2]
[390837030,1760176253656,-300.0,0.00015077,2]
[390837031,1760176253665,-168.0,0.00015087,2]
[390837033,1760176253675,-200.0,0.00015101,2]
[390837034,1760176253684,-828.0,0.00015101,2]
[390837036,1760176253694,-500.0,0.00015101,2]
[390837038,1760176253703,-150.0,0.00015101,2]
[390837039,1760176253712,-500.0,0.00015101,2]
[390837041,1760176253723,-1146.0,0.00015101,2]
[390837043,1760176253732,-475.0,0.00015101,2]
[390837044,1760176253741,-200.0,0.00015101,2]
[390837046,1760176253751,-504.0,0.00015101,2]
[390837048,1760176253760,-500.0,0.00015101,2]
[390837049,1760176253770,-500.0,0.00015101,2]
[390837051,1760176253779,-551.0,0.00015101,2]
[390837053,1760176253789,-500.0,0.00015101,2]
[390837054,1760176253799,-500.0,0.00015101,2]
[390837056,1760176253808,-2417.0,0.00015101,2]
[390837058,1760176253818,-573.97473461,0.00015101,2]
[390837060,1760176253827,-500.0,0.00015101,2]
[390837062,1760176253836,-500.0,0.00015101,2]
[390837064,1760176253846,-196.25382985,0.00015101,2]
[390837066,1760176253856,-500.0,0.00015101,2]
[390837068,1760176253866,-150.0,0.0001511,2]
[390837069,1760176253876,-150.0,0.0001511,2]
[390837070,1760176253887,-150.0,0.0001511,2]
[390837071,1760176253898,-168.0,0.00015113,2]
[390837072,1760176253909,-200.0,0.00015118,2]
[390837073,1760176253919,-200.0,0.00015118,2]
[390837074,1760176253929,-624.73945618,0.00015122,2]
[390837075,1760176253939,-995.0,0.00015134,2]
[390837076,1760176253957,-168.0,0.00015137,2]
[390837077,1760176253967,-200.0,0.0001515,2]
[390837078,1760176253977,-828.0,0.00015155,2]
[390837079,1760176253987,-500.0,0.00015155,2]
[390837080,1760176253997,-200.0,0.00015155,2]
[390837081,1760176254007,-169.06945103,0.00015155,2]
[390837083,1760176254017,-1146.0,0.00015155,2]
[390837084,1760176254030,-475.0,0.00015155,2]
[390837085,1760176254040,-504.0,0.00015155,2]
[390837087,1760176254050,-500.0,0.00015155,2]
[390837089,1760176254060,-600.0,0.00015155,2]
[390837091,1760176254071,-551.0,0.00015155,2]
[390837093,1760176254080,-500.0,0.00015155,2]
[390837095,1760176254090,-500.0,0.00015155,2]
[390837097,1760176254101,-2417.0,0.00015155,2]
[390837100,1760176254111,-500.0,0.00015155,2]
[390837102,1760176254121,-500.0,0.00015155,2]
[390837104,1760176254130,-500.0,0.00015155,2]
[390837106,1760176254140,-1475.0,0.00015157,2]
[390837108,1760176254149,-806.62785191,0.00015161,2]
[390837110,1760176254159,-150.0,0.00015164,2]
[390837112,1760176254168,-150.0,0.00015164,2]
[390837114,1760176254177,-150.0,0.00015164,2]
[390837116,1760176254187,-828.0,0.0001521,2]
[390837118,1760176254196,-221.20458247,0.0001521,2]
[390837120,1760176254207,-1146.0,0.0001521,2]
[390837122,1760176254217,-475.0,0.0001521,2]
[390837124,1760176254226,-504.0,0.0001521,2]
[390837126,1760176254236,-500.0,0.0001521,2]
[390837128,1760176254245,-551.0,0.0001521,2]
[390837130,1760176254255,-302.13372929,0.0001521,2]
[390837132,1760176254265,-447.0,0.0001521,2]
[390837134,1760176254275,-2417.0,0.0001521,2]
[390837136,1760176254284,-500.0,0.0001521,2]
[390837138,1760176254294,-500.0,0.0001521,2]
[390837140,1760176254303,-500.0,0.0001521,2]
[390837142,1760176254313,-150.0,0.00015219,2]
[390837144,1760176254323,-250.0,0.00015219,2]
[390837146,1760176254332,-250.0,0.00015219,2]
[390837148,1760176254341,-181.0,0.00015233,2]
[390837150,1760176254350,-995.0,0.00015234,2]
[390837152,1760176254359,-168.0,0.00015238,2]
[390837154,1760176254369,-1089.21,0.00015238,2]
[390837156,1760176254379,-828.0,0.00015265,2]
[390837158,1760176254389,-1146.0,0.00015265,2]
[390837160,1760176254398,-475.0,0.00015265,2]
[390837162,1760176254408,-504.0,0.00015265,2]
[390837164,1760176254418,-500.0,0.00015265,2]
[390837166,1760176254429,-551.0,0.00015265,2]
[390837168,1760176254439,-2417.0,0.00015265,2]
[390837171,1760176254450,-500.0,0.00015265,2]
[390837173,1760176254460,-500.0,0.00015265,2]
[390837175,1760176254469,-500.0,0.00015265,2]
[390837177,1760176254479,-500.0,0.00015274,2]
[390837179,1760176254488,-250.0,0.00015274,2]
[390837181,1760176254497,-1757.12,0.00015274,2]
[390837193,1760176254607,-342.04546889,0.00015286,2]
[390837195,1760176254619,-166.67,0.0001529,2]
[390837198,1760176254629,-1517.64,0.000153,2]
[390837200,1760176254639,-433.0,0.000153,2]
[390837202,1760176254650,-200.0,0.00015301,2]
[390837203,1760176254660,-393.37520004,0.0001531,2]
[390837205,1760176254669,-828.0,0.0001532,2]
[390837207,1760176254679,-1146.0,0.0001532,2]
[390837210,1760176254688,-475.0,0.0001532,2]
[390837212,1760176254698,-504.0,0.0001532,2]
[390837213,1760176254707,-500.0,0.0001532,2]
[390837216,1760176254717,-551.0,0.0001532,2]
[390837217,1760176254726,-2417.0,0.0001532,2]
[390837219,1760176254735,-500.0,0.0001532,2]
[390837221,1760176254745,-500.0,0.0001532,2]
[390837224,1760176254755,-500.0,0.0001532,2]
[390837226,1760176254763,-828.0,0.00015375,2]
[390837228,1760176254775,-1146.0,0.00015375,2]
[390837230,1760176254784,-475.0,0.00015375,2]
[390837232,1760176254793,-504.0,0.00015375,2]
[390837234,1760176254804,-500.0,0.00015375,2]
[390837236,1760176254813,-551.0,0.00015375,2]
[390837238,1760176254822,-2417.0,0.00015375,2]
[390837240,1760176254832,-500.0,0.00015375,2]
[390837242,1760176254841,-500.0,0.00015375,2]
[390837244,1760176254850,-500.0,0.00015375,2]
[390837246,1760176254859,-166.66,0.00015377,2]
[390837248,1760176254868,-11217.23700133,0.000154,2]
[390837250,1760176254878,-501.39767496,0.000154,2]
[390837252,1760176254888,-945.48496781,0.000154,2]
[390837254,1760176254897,-995.0,0.00015417,2]
[390837256,1760176254906,-268.49,0.00015419,2]
[390837258,1760176254915,-828.0,0.00015429,2]
[390837260,1760176254925,-1146.0,0.00015429,2]
[390837262,1760176254935,-475.0,0.00015429,2]
[390837264,1760176254947,-504.0,0.00015429,2]
[390837266,1760176254958,-500.0,0.00015429,2]
[390837268,1760176254968,-551.0,0.00015429,2]
[390837270,1760176254977,-2417.0,0.00015429,2]
[390837271,1760176254987,-500.0,0.00015429,2]
[390837273,1760176254996,-500.0,0.00015429,2]
[390837275,1760176255005,-500.0,0.00015429,2]
[390837277,1760176255015,-175.87,0.00015433,2]
[390837279,1760176255026,-995.0,0.00015445,2]
[390837281,1760176255035,-200.0,0.00015455,2]
[390837283,1760176255044,-995.0,0.00015468,2]
[390837285,1760176255053,-500.0,0.00015484,2]
[390837287,1760176255064,-500.0,0.00015484,2]
[390837289,1760176255072,-500.0,0.00015484,2]
[390837291,1760176255082,-500.0,0.00015484,2]
[390837293,1760176255091,-500.0,0.00015484,2]
[390837295,1760176255100,-500.0,0.00015484,2]
[390837297,1760176255109,-779.0,0.00015484,2]
[390837299,1760176255119,-500.0,0.00015484,2]
[390837301,1760176255128,-500.0,0.00015484,2]
[390837303,1760176255138,-500.0,0.00015484,2]
[390837305,1760176255147,-828.0,0.00015484,2]
[390837307,1760176255161,-1146.0,0.00015484,2]
[390837309,1760176255171,-475.0,0.00015484,2]
[390837311,1760176255181,-504.0,0.00015484,2]
[390837314,1760176255191,-500.0,0.00015484,2]
[390837315,1760176255200,-551.0,0.00015484,2]
[390837318,1760176255209,-2417.0,0.00015484,2]
[390837320,1760176255219,-500.0,0.00015484,2]
[390837322,1760176255229,-500.0,0.00015484,2]
[390837324,1760176255238,-500.0,0.00015484,2]
[390837326,1760176255247,-995.0,0.00015499,2]
[390837328,1760176255255,-250.0,0.000155,2]
[390837329,1760176255265,-250.0,0.000155,2]
[390837331,1760176255276,-250.0,0.000155,2]
[390837333,1760176255286,-250.0,0.000155,2]
[390837336,1760176255296,-250.0,0.000155,2]
[390837338,1760176255305,-250.0,0.000155,2]
[390837339,1760176255314,-250.0,0.000155,2]
[390837341,1760176255323,-250.0,0.000155,2]
[390837343,1760176255332,-250.0,0.000155,2]
[390837345,1760176255341,-250.0,0.000155,2]
[390837347,1760176255350,-250.0,0.000155,2]
[390837349,1760176255359,-250.0,0.000155,2]
[390837351,1760176255368,-250.0,0.000155,2]
[390837354,1760176255378,-382.4,0.000155,2]
[390837355,1760176255388,-1600.0,0.00015508,2]
[390837357,1760176255397,-1000.0,0.00015521,2]
[390837360,1760176255406,-354.47954189,0.00015521,2]
[390837361,1760176255415,-904.41870018,0.00015521,2]
[390837363,1760176255425,-1000.0,0.00015521,2]
[390837365,1760176255434,-1000.0,0.00015521,2]
[390837368,1760176255445,-1000.0,0.00015521,2]
[390837370,1760176255454,-898.15188537,0.00015521,2]
[390837372,1760176255464,-1000.0,0.00015521,2]
[390837374,1760176255473,-1000.0,0.00015521,2]
[390837375,1760176255482,-1000.0,0.00015521,2]
[390837377,1760176255491,-504.67142996,0.00015521,2]
[390837379,1760176255501,-1000.0,0.00015521,2]
[390837381,1760176255510,-1000.0,0.00015521,2]
[390837383,1760176255521,-1000.0,0.00015521,2]
[390837386,1760176255531,-1000.0,0.00015521,2]
[390837388,1760176255540,-1000.0,0.00015521,2]
[390837389,1760176255549,-1132.10678544,0.00015521,2]
[390837391,1760176255559,-1000.0,0.00015521,2]
[390837394,1760176255568,-257.91778498,0.00015523,2]
[390837396,1760176255577,-995.0,0.00015527,2]
[390837397,1760176255587,-828.0,0.00015539,2]
[390837400,1760176255596,-1146.0,0.00015539,2]
[390837402,1760176255606,-475.0,0.00015539,2]
[390837404,1760176255615,-504.0,0.00015539,2]
[390837406,1760176255624,-500.0,0.00015539,2]
[390837408,1760176255633,-551.0,0.00015539,2]
[390837410,1760176255642,-2417.0,0.00015539,2]
[390837412,1760176255652,-500.0,0.00015539,2]
[390837414,1760176255661,-500.0,0.00015539,2]
[390837416,1760176255670,-500.0,0.00015539,2]
[390837418,1760176255679,-500.0,0.00015548,2]
[390837420,1760176255688,-1757.12,0.00015548,2]
[390837422,1760176255697,-828.0,0.00015594,2]
[390837424,1760176255706,-1146.0,0.00015594,2]
[390837426,1760176255715,-475.0,0.00015594,2]
[390837428,1760176255724,-504.0,0.00015594,2]
[390837429,1760176255734,-551.0,0.00015594,2]
[390837431,1760176255743,-2417.0,0.00015594,2]
[390837434,1760176255752,-500.0,0.00015594,2]
[390837436,1760176255761,-500.0,0.00015594,2]
[390837438,1760176255772,-500.0,0.00015594,2]
[390837440,1760176255782,-1613.25570382,0.0001561,2]
[390837441,1760176255791,-828.0,0.00015649,2]
[390837443,1760176255800,-1146.0,0.00015649,2]
[390837445,1760176255809,-475.0,0.00015649,2]
[390837447,1760176255818,-504.0,0.00015649,2]
[390837449,1760176255827,-551.0,0.00015649,2]
[390837451,1760176255836,-2417.0,0.00015649,2]
[390837453,1760176255845,-500.0,0.00015649,2]
[390837455,1760176255854,-500.0,0.00015649,2]
[390837457,1760176255863,-500.0,0.00015649,2]
[390837459,1760176255872,-932.81340724,0.00015654,2]
[390837461,1760176255880,-995.0,0.00015659,2]
[390837463,1760176255890,-995.0,0.0001567,2]
[390837465,1760176255899,-624.73945618,0.00015678,2]
[390837467,1760176255908,-168.0,0.00015697,2]
[390837469,1760176255918,-250.0,0.000157,2]
[390837471,1760176255927,-250.0,0.000157,2]
[390837473,1760176255937,-250.0,0.000157,2]
[390837475,1760176255946,-250.0,0.000157,2]
[390837477,1760176255959,-250.0,0.000157,2]
[390837479,1760176255968,-250.0,0.000157,2]
[390837481,1760176255977,-250.0,0.000157,2]
[390837483,1760176255985,-250.0,0.000157,2]
[390837485,1760176255996,-250.0,0.000157,2]
[390837487,1760176256004,-250.0,0.000157,2]
[390837489,1760176256014,-250.0,0.000157,2]
[390837491,1760176256024,-250.0,0.000157,2]
[390837493,1760176256036,-828.0,0.00015703,2]
[390837496,1760176256046,-1146.0,0.00015703,2]
[390837498,1760176256056,-475.0,0.00015703,2]
[390837500,1760176256066,-504.0,0.00015703,2]
[390837502,1760176256075,-551.0,0.00015703,2]
[390837504,1760176256085,-2417.0,0.00015703,2]
[390837506,1760176256094,-500.0,0.00015703,2]
[390837507,1760176256103,-500.0,0.00015703,2]
[390837510,1760176256114,-500.0,0.00015703,2]
[390837512,1760176256123,-995.0,0.00015713,2]
[390837514,1760176256132,-2351.0,0.00015729,2]
[390837516,1760176256141,-828.0,0.00015758,2]
[390837518,1760176256150,-1146.0,0.00015758,2]
[390837520,1760176256163,-475.0,0.00015758,2]
[390837522,1760176256181,-504.0,0.00015758,2]
[390837524,1760176256197,-551.0,0.00015758,2]
[390837526,1760176256206,-2417.0,0.00015758,2]
[390837528,1760176256215,-500.0,0.00015758,2]
[390837530,1760176256224,-550.0,0.00015758,2]
[390837532,1760176256233,-500.0,0.00015758,2]
[390837533,1760176256242,-1605.22600209,0.00015768,7]
[390837534,1760176256251,-486.13,0.00015781,2]
[390837535,1760176256260,-546.25,0.00015781,2]
[390837536,1760176256269,-828.0,0.00015813,2]
[390837537,1760176256280,-1146.0,0.00015813,2]
[390837538,1760176256289,-475.0,0.00015813,2]
[390837539,1760176256298,-504.0,0.00015813,2]
[390837540,1760176256307,-551.0,0.00015813,2]
[390837541,1760176256316,-2417.0,0.00015813,2]
[390837542,1760176256325,-500.0,0.00015813,2]
[390837543,1760176256334,-500.0,0.00015813,2]
[390837545,1760176256343,-500.0,0.00015822,2]
[390837546,1760176256351,-1757.12,0.00015822,2]
[390837548,1760176256360,-168.0,0.00015828,2]
[390837550,1760176256368,-828.0,0.00015868,2]
[390837552,1760176256377,-1146.0,0.00015868,2]
[390837554,1760176256387,-475.0,0.00015868,2]
[390837556,1760176256396,-504.0,0.00015868,2]
[390837558,1760176256405,-551.0,0.00015868,2]
[390837560,1760176256414,-2417.0,0.00015868,2]
[390837562,1760176256422,-500.0,0.00015868,2]
[390837564,1760176256432,-175.83294016,0.00015868,2]
[390837566,1760176256441,-945.48496781,0.000159,2]
[390837568,1760176256451,-828.0,0.00015923,2]
[390837570,1760176256460,-1146.0,0.00015923,2]
[390837572,1760176256470,-475.0,0.00015923,2]
[390837575,1760176256480,-504.0,0.00015923,2]
[390837576,1760176256489,-551.0,0.00015923,2]
[390837578,1760176256499,-2417.0,0.00015923,2]
[390837580,1760176256508,-500.0,0.00015923,2]
[390837582,1760176256517,-168.0,0.00015937,2]
[390837585,1760176256528,-334.5472959,0.00015939,2]
[390837586,1760176256538,-268.49,0.00015965,2]
[390837588,1760176256547,-9535.48058536,0.00015966,2]
[390837591,1760176256557,-5000.0,0.00015966,2]
[390837593,1760176256566,-5000.0,0.00015966,2]
[390837594,1760176256576,-5000.0,0.00015966,2]
[390837596,1760176256585,-500.0,0.00015973,2]
[390837598,1760176256594,-500.0,0.00015973,2]
[390837600,1760176256603,-500.0,0.00015973,2]
[390837602,1760176256611,-500.0,0.00015973,2]
[390837604,1760176256620,-500.0,0.00015973,2]
[390837606,1760176256629,-500.0,0.00015973,2]
[390837608,1760176256639,-500.0,0.00015973,2]
[390837610,1760176256648,-500.0,0.00015973,2]
[390837612,1760176256656,-500.0,0.00015973,2]
[390837614,1760176256664,-500.0,0.00015973,2]
[390837616,1760176256673,-500.0,0.00015973,2]
[390837618,1760176256682,-160.49561229,0.00015973,2]
[390837620,1760176256691,-591.33236894,0.00015973,2]
[390837622,1760176256700,-500.0,0.00015973,2]
[390837625,1760176256709,-500.12667981,0.00015973,2]
[390837627,1760176256719,-329.2898567,0.00015973,2]
[390837629,1760176256728,-500.0,0.00015973,2]
[390837631,1760176256737,-500.0,0.00015973,2]
[390837633,1760176256746,-500.0,0.00015973,2]
[390837635,1760176256755,-500.0,0.00015973,2]
[390837637,1760176256764,-165.49206283,0.00015973,2]
[390837639,1760176256774,-500.0,0.00015973,2]
[390837641,1760176256783,-500.0,0.00015973,2]
[390837643,1760176256791,-203.82493078,0.00015973,2]
[390837645,1760176256801,-500.0,0.00015973,2]
[390837647,1760176256810,-160.24685783,0.00015973,2]
[390837649,1760176256820,-500.0,0.00015973,2]
[390837651,1760176256828,-500.0,0.00015973,2]
[390837653,1760176256836,-500.1745572,0.00015973,2]
[390837655,1760176256845,-326.49586785,0.00015973,2]
[390837657,1760176256853,-500.18226444,0.00015973,2]
[390837659,1760176256862,-160.21716625,0.00015973,2]
[390837661,1760176256870,-500.0,0.00015973,2]
[390837663,1760176256878,-414.99072918,0.00015973,2]
[390837665,1760176256887,-160.24842176,0.00015973,2]
[390837667,1760176256896,-160.26707219,0.00015973,2]
[390837669,1760176256905,-160.22396816,0.00015973,2]
[390837671,1760176256914,-160.27628069,0.00015973,2]
[390837673,1760176256924,-173.06401025,0.00015973,2]
[390837675,1760176256933,-160.28585005,0.00015973,2]
[390837677,1760176256942,-500.0,0.00015973,2]
[390837679,1760176256954,-160.21079418,0.00015973,2]
[390837681,1760176256963,-160.26724113,0.00015973,2]
[390837683,1760176256972,-160.25661032,0.00015973,2]
[390837685,1760176256981,-500.0,0.00015973,2]
[390837687,1760176256991,-500.0,0.00015973,2]
[390837689,1760176256999,-500.0,0.00015973,2]
[390837691,1760176257009,-208.00345415,0.00015973,2]
[390837693,1760176257018,-160.22135125,0.00015973,2]
[390837694,1760176257029,-500.43060712,0.00015973,2]
[390837696,1760176257038,-500.2561938,0.00015973,2]
[390837698,1760176257049,-160.2460858,0.00015973,2]
[390837700,1760176257058,-152.23750683,0.00015973,2]
[390837702,1760176257067,-500.0,0.00015973,2]
[390837704,1760176257075,-500.0,0.00015973,2]
[390837706,1760176257084,-500.16276424,0.00015973,2]
[390837708,1760176257093,-562.79922811,0.00015973,2]
[390837710,1760176257101,-157.31671851,0.00015973,2]
[390837712,1760176257110,-500.0,0.00015973,2]
[390837714,1760176257119,-516.10484469,0.00015973,2]
[390837716,1760176257128,-500.0,0.00015973,2]
[390837718,1760176257137,-500.0,0.00015973,2]
[390837720,1760176257147,-164.70710526,0.00015973,2]
[390837722,1760176257156,-500.0,0.00015973,2]
[390837724,1760176257165,-500.0,0.00015973,2]
[390837726,1760176257174,-161.44724478,0.00015973,2]
[390837728,1760176257182,-500.0,0.00015973,2]
[390837730,1760176257192,-500.0,0.00015973,2]
[390837732,1760176257200,-302.91433126,0.00015973,2]
[390837734,1760176257209,-500.0,0.00015973,2]
[390837736,1760176257218,-500.0,0.00015973,2]
[390837738,1760176257227,-500.0,0.00015973,2]
[390837740,1760176257237,-324.63825813,0.00015973,2]
[390837742,1760176257246,-500.0,0.00015973,2]
[390837744,1760176257255,-500.0,0.00015973,2]
[390837746,1760176257264,-217.43162071,0.00015973,2]
[390837748,1760176257275,-500.0,0.00015973,2]
[390837750,1760176257284,-340.07948803,0.00015973,2]
[390837752,1760176257293,-500.26290145,0.00015973,2]
[390837754,1760176257302,-500.0,0.00015973,2]
[390837755,1760176257311,-523.47952108,0.00015973,2]
[390837756,1760176257319,-500.19530901,0.00015973,2]
[390837757,1760176257329,-500.0,0.00015973,2]
[390837758,1760176257338,-500.0,0.00015973,2]
[390837759,1760176257347,-500.0,0.00015973,2]
[390837760,1760176257356,-500.0,0.00015973,2]
[390837761,1760176257365,-204.87023606,0.00015973,2]
[390837762,1760176257374,-500.0,0.00015973,2]
[390837763,1760176257383,-500.3731077,0.00015973,2]
[390837764,1760176257394,-828.0,0.00015977,2]
[390837765,1760176257403,-1146.0,0.00015977,2]
[390837766,1760176257414,-475.0,0.00015977,2]
[390837767,1760176257423,-504.0,0.00015977,2]
[390837768,1760176257433,-551.0,0.00015977,2]
[390837769,1760176257442,-2417.0,0.00015977,2]
[390837770,1760176257451,-500.0,0.00015977,2]
[390837771,1760176257460,-5000.0,0.00015999,2]
[390837772,1760176257470,-18724.83354022,0.00016,2]
[390837802,1760176258486,-150.0,0.00014991,2]
[390837803,1760176258495,-649.48553486,0.00016,2]
[390837804,1760176258507,-348.9,0.00016,2]
[390837805,1760176258518,-6926.35878916,0.00016,2]
[390837837,1760176259325,-492.57,0.00015,2]
[390837839,1760176259336,-508.77070074,0.00015,2]
[390837841,1760176259347,-683.95731502,0.00015,2]
[390837844,1760176259363,-293.99871524,0.00015,2]
[390837846,1760176259373,-1979.296731,0.00015,2]
[390837848,1760176259382,-1979.296731,0.00015,2]
[390837850,1760176259391,-1979.296731,0.00015,2]
[390837852,1760176259401,-169.654225,0.00015,2]
[390837854,1760176259411,-2266.75584498,0.00016,2]
[390837857,1760176259427,-192686.11761499,0.00016,2]
[390837870,1760176259553,-4220.76174618,0.00016,2]
[390837872,1760176259564,-1679.69,0.00016,2]
[390837937,1760176260859,-1979.296731,0.00015,2]
[390837939,1760176260868,-1979.296731,0.00015,2]
[390837941,1760176260878,-1979.296731,0.00015,2]
[390837943,1760176260887,-1979.296731,0.00015,2]
[390837945,1760176260896,-1979.296731,0.00015,2]
[390837947,1760176260906,-1979.296731,0.00015,2]
[390837949,1760176260916,-20115.396614,0.00016,2]
[390837952,1760176260932,-529.3941732,0.00016,2]
[390837956,1760176260964,-27922.0,0.00016,2]
[390837959,1760176260975,-16268.09592923,0.00016,2]
[390837961,1760176260987,-570.55742352,0.00016,2]
[390838060,1760176261922,-175.87,0.00015433,2]
[390838062,1760176261931,-191889.12124327,0.00016,2]
[390838064,1760176261943,-99219.92742,0.00016,2]
[390838066,1760176261958,-55237.5572,0.00016,2]
[390838068,1760176261969,-1218.57340033,0.00016,2]
[390838072,1760176261991,-6444.49007598,0.00016,2]
[390838075,1760176262013,-1381.00588662,0.00016,2]
[390838078,1760176262036,-2099.03,0.00016,2]
[390838081,1760176262054,-20579.26161016,0.00016,2]
[390838084,1760176262065,-21093.73509112,0.00016,2]
[390838086,1760176262076,-656.84003422,0.00016,2]
[390838088,1760176262087,-396.96834844,0.00016,2]
[390838090,1760176262097,-6533.27,0.00016,2]
[390838116,1760176304699,500.0,0.00013698,15]
[390838119,1760176639723,1131.93,7.156e-05,2]
[390838120,1760176639876,1131.93,7.532e-05,2]
[390838121,1760176640088,1131.93,7.909e-05,2]
[390838122,1760176640259,1131.93,8.286e-05,2]
[390838123,1760176640463,1131.93,8.662e-05,2]
[390838124,1760176640788,1131.93,9.039e-05,2]
[390838125,1760176641054,1131.93,9.415e-05,2]
[390838126,1760176641208,1131.93,9.792e-05,2]
[390838907,1760176795086,-1131.93,0.00010169,2]
[390838908,1760176795107,-775.75877493,0.00010539,2]
[390838909,1760176795130,-1131.93,0.00010545,2]
[390838910,1760176795151,-1131.93,0.00010922,2]
[390838911,1760176795172,-2000.0,0.00011185,2]
[390838912,1760176795193,-187.25495008,0.00011185,2]
[390838913,1760176795215,-250.0,0.00011185,2]
[390838914,1760176795235,-151.19627499,0.00011298,2]
[390840103,1760177010772,-238.02,0.00011219,2]
[390841506,1760177355748,203.86702495,0.00011242,2]
[390841807,1760177433693,-980.73372501,0.00011298,2]
[390841809,1760177433703,-1131.93,0.00011675,2]
[390841811,1760177433712,-1131.93,0.00012052,2]
[390841813,1760177433721,-1131.93,0.00012428,2]
[390841814,1760177433730,-310.44516359,0.00012428,2]
[390841816,1760177433740,-188.0,0.00012685,2]
[390841818,1760177433749,-1130.47618977,0.00012805,2]
[390841820,1760177433761,-1.45381023,0.00012805,2]
[390841821,1760177433770,-511.67710015,0.00012896,2]
[390841823,1760177433782,-688.32289985,0.00012896,2]
[390841825,1760177433791,-189.20533277,0.00012897,2]
[390841829,1760177433830,-141.79466723,0.00012897,2]
[390841831,1760177433839,-300.0,0.00012897,2]
[390841833,1760177433848,-248.0,0.00012897,2]
[390841834,1760177433857,-101.34995486,0.00012897,2]
[390841836,1760177433867,-198.65004514,0.00012897,2]
[390841838,1760177433877,-500.0,0.000129,2]